[Event "Titled Tuesday Blitz March 01 Early 2022"]
[White "Balaji, Aaravamudhan"]
[Black "Chigaev, Maksim"]
[WhiteFideId "436224"]
[BlackFideId "4108116"]
[WhiteElo "2085"]
[BlackElo "2502"]
[Result "0-1"]
[Round "04"]
[TimeControl "180+1"]
[Date "2022.03.01"]
[WhiteClock "0:00:04"]
[BlackClock "0:00:04"]

1. Nf3 {[%clk 0:03:00]}  Nf6 {[%clk 0:02:58]} 2. g3 {[%clk 0:03:01]}  g6 {[%clk 0:02:57]} 3. Bg2 {[%clk 0:03:02]}  Bg7 {[%clk 0:02:58]} 4. O-O {[%clk 0:03:03]}  O-O {[%clk 0:02:59]} 5. d3 {[%clk 0:03:03]}  c5 {[%clk 0:02:58]} 6. e4 {[%clk 0:03:03]}  Nc6 {[%clk 0:02:59]} 7. Re1 {[%clk 0:03:02]}  d6 {[%clk 0:02:59]} 8. c3 {[%clk 0:03:02]}  Rb8 {[%clk 0:02:57]} 9. d4 {[%clk 0:03:02]}  cxd4 {[%clk 0:02:57]} 10. cxd4 {[%clk 0:03:03]}  Bg4 {[%clk 0:02:58]} 11. h3 {[%clk 0:02:59]}  Bxf3 {[%clk 0:02:58]} 12. Bxf3 {[%clk 0:03:00]}  Nd7 {[%clk 0:02:59]} 13. d5 {[%clk 0:02:40]}  Nd4 {[%clk 0:02:49]} 14. Bg2 {[%clk 0:02:40]}  Rc8 {[%clk 0:02:49]} 15. Nc3 {[%clk 0:02:39]}  Qb6 {[%clk 0:02:40]} 16. Be3 {[%clk 0:02:20]}  Rc4 {[%clk 0:02:17]} 17. Bf1 {[%clk 0:02:10]}  Qxb2 {[%clk 0:02:16]} 18. Bxc4 {[%clk 0:01:45]}  Nc2 {[%clk 0:02:15]} 19. Rc1 {[%clk 0:01:22]}  Nxe1 {[%clk 0:01:36]} 20. Qxe1 {[%clk 0:01:21]}  Rc8 {[%clk 0:01:36]} 21. Nd1 {[%clk 0:01:07]}  Qa3 {[%clk 0:01:26]} 22. Bb5 {[%clk 0:00:47]}  Rxc1 {[%clk 0:01:19]} 23. Bxc1 {[%clk 0:00:45]}  Qxc1 {[%clk 0:01:18]} 24. Bxd7 {[%clk 0:00:46]}  Qc2 {[%clk 0:01:07]} 25. Ne3 {[%clk 0:00:43]}  Qxa2 {[%clk 0:00:32]} 26. Qb4 {[%clk 0:00:40]}  b6 {[%clk 0:00:29]} 27. Qc4 {[%clk 0:00:37]}  Qa1+ {[%clk 0:00:21]} 28. Kg2 {[%clk 0:00:37]}  h5 {[%clk 0:00:19]} 29. Qa4 {[%clk 0:00:26]}  Qb1 {[%clk 0:00:10]} 30. Bb5 {[%clk 0:00:22]}  Bh6 {[%clk 0:00:07]} 31. Nf1 {[%clk 0:00:17]}  a5 {[%clk 0:00:07]} 32. Be2 {[%clk 0:00:15]}  Qb2 {[%clk 0:00:04]} 33. Qe8+ {[%clk 0:00:15]}  Kg7 {[%clk 0:00:04]} 34. Bf3 {[%clk 0:00:15]}  b5 {[%clk 0:00:04]} 35. Qxe7 {[%clk 0:00:15]}  a4 {[%clk 0:00:03]} 36. e5 {[%clk 0:00:16]}  Qxe5 {[%clk 0:00:03]} 37. Qa7 {[%clk 0:00:10]}  Qc3 {[%clk 0:00:02]} 38. Ne3 {[%clk 0:00:03]}  Bxe3 {[%clk 0:00:01]} 39. fxe3 {[%clk 0:00:04]}  a3 {[%clk 0:00:02]} 40. Be4 {[%clk 0:00:05]}  Qb2+ {[%clk 0:00:02]} 41. Kf3 {[%clk 0:00:05]}  a2 {[%clk 0:00:03]} 42. Bxg6 {[%clk 0:00:04]}  Qf6+ {[%clk 0:00:04]} 43. Kg2 {[%clk 0:00:03]}  a1=Q {[%clk 0:00:04]} 44. Qxf7+ {[%clk 0:00:04]} 0-1


[Site "https://www.chess.com"]

[Event "Titled Tuesday Blitz March 01 Early 2022"]
[White "Bashirli, Nail"]
[Black "Onufrienko, Vladislav"]
[WhiteFideId "13406809"]
[BlackFideId "13804332"]
[WhiteElo "2333"]
[BlackElo "1659"]
[Result "1-0"]
[Round "04"]
[TimeControl "180+1"]
[Date "2022.03.01"]
[WhiteClock "0:00:30"]
[BlackClock "0:00:22"]

1. e4 {[%clk 0:03:00]}  e5 {[%clk 0:02:57]} 2. Nf3 {[%clk 0:02:55]}  Nc6 {[%clk 0:02:57]} 3. Bb5 {[%clk 0:02:51]}  Nf6 {[%clk 0:02:56]} 4. O-O {[%clk 0:02:51]}  Nxe4 {[%clk 0:02:55]} 5. Re1 {[%clk 0:02:51]}  Nd6 {[%clk 0:02:54]} 6. Nxe5 {[%clk 0:02:47]}  Nxe5 {[%clk 0:02:45]} 7. Rxe5+ {[%clk 0:02:48]}  Be7 {[%clk 0:02:44]} 8. Bf1 {[%clk 0:02:49]}  O-O {[%clk 0:02:44]} 9. d4 {[%clk 0:02:49]}  Bf6 {[%clk 0:02:42]} 10. Re2 {[%clk 0:02:50]}  Re8 {[%clk 0:02:43]} 11. Rxe8+ {[%clk 0:02:47]}  Qxe8 {[%clk 0:02:33]} 12. Bf4 {[%clk 0:02:48]}  Nf5 {[%clk 0:02:23]} 13. c3 {[%clk 0:02:47]}  c6 {[%clk 0:02:20]} 14. d5 {[%clk 0:02:39]}  Qe4 {[%clk 0:02:14]} 15. dxc6 {[%clk 0:02:13]}  dxc6 {[%clk 0:01:52]} 16. Bc7 {[%clk 0:01:53]}  Nh4 {[%clk 0:01:28]} 17. Nd2 {[%clk 0:01:41]}  Qg6 {[%clk 0:01:20]} 18. Bg3 {[%clk 0:01:28]}  Bg4 {[%clk 0:01:11]} 19. Qb3 {[%clk 0:01:24]}  Rd8 {[%clk 0:01:08]} 20. Nc4 {[%clk 0:01:08]}  Bc8 {[%clk 0:00:52]} 21. Re1 {[%clk 0:01:05]}  Nf5 {[%clk 0:00:47]} 22. Bd3 {[%clk 0:01:00]}  h5 {[%clk 0:00:46]} 23. Nd6 {[%clk 0:00:52]}  h4 {[%clk 0:00:40]} 24. Bf4 {[%clk 0:00:48]}  Qg4 {[%clk 0:00:34]} 25. Qxf7+ {[%clk 0:00:45]}  Kh8 {[%clk 0:00:26]} 26. Re8+ {[%clk 0:00:33]}  Kh7 {[%clk 0:00:26]} 27. Rxd8 {[%clk 0:00:29]}  Bxd8 {[%clk 0:00:26]} 28. Bxf5+ {[%clk 0:00:29]}  Bxf5 {[%clk 0:00:25]} 29. Qxf5+ {[%clk 0:00:30]}  Qxf5 {[%clk 0:00:22]} 30. Nxf5 {[%clk 0:00:30]}  g5 {[%clk 0:00:22]} 1-0


[Site "https://www.chess.com"]

[Event "Titled Tuesday Blitz March 01 Early 2022"]
[White "Bodnaruk, Anastasia"]
[Black "Niyazgulova, Marina"]
[WhiteFideId "4181751"]
[BlackFideId "24142573"]
[WhiteElo "2393"]
[BlackElo "2075"]
[Result "1-0"]
[Round "04"]
[TimeControl "180+1"]
[Date "2022.03.01"]
[WhiteClock "0:00:05"]
[BlackClock "0:00:02"]

1. e4 {[%clk 0:02:54]}  d5 {[%clk 0:02:56]} 2. exd5 {[%clk 0:02:54]}  Qxd5 {[%clk 0:02:51]} 3. Nc3 {[%clk 0:02:54]}  Qd6 {[%clk 0:02:51]} 4. d4 {[%clk 0:02:51]}  Nf6 {[%clk 0:02:49]} 5. Nf3 {[%clk 0:02:48]}  c6 {[%clk 0:02:49]} 6. Be2 {[%clk 0:02:46]}  Bg4 {[%clk 0:02:36]} 7. h3 {[%clk 0:02:43]}  Bf5 {[%clk 0:02:32]} 8. g4 {[%clk 0:02:35]}  Bg6 {[%clk 0:02:28]} 9. Ne5 {[%clk 0:02:33]}  Nbd7 {[%clk 0:02:24]} 10. f4 {[%clk 0:02:28]}  Be4 {[%clk 0:02:16]} 11. Rg1 {[%clk 0:02:10]}  Bd5 {[%clk 0:02:09]} 12. Bd3 {[%clk 0:02:00]}  g6 {[%clk 0:01:44]} 13. Qe2 {[%clk 0:01:55]}  Bg7 {[%clk 0:01:41]} 14. Be3 {[%clk 0:01:55]}  Qb4 {[%clk 0:01:00]} 15. O-O-O {[%clk 0:01:51]}  Qa5 {[%clk 0:00:40]} 16. g5 {[%clk 0:01:37]}  Nh5 {[%clk 0:00:38]} 17. Nxd7 {[%clk 0:01:34]}  Kxd7 {[%clk 0:00:36]} 18. f5 {[%clk 0:01:33]}  Bxa2 {[%clk 0:00:28]} 19. Rge1 {[%clk 0:01:04]}  Bd5 {[%clk 0:00:20]} 20. Nxd5 {[%clk 0:00:55]}  cxd5 {[%clk 0:00:17]} 21. Bb5+ {[%clk 0:00:49]}  Kd8 {[%clk 0:00:14]} 22. Bf2 {[%clk 0:00:35]}  Bf8 {[%clk 0:00:11]} 23. Kb1 {[%clk 0:00:33]}  Rc8 {[%clk 0:00:09]} 24. Qe5 {[%clk 0:00:21]}  Qxb5 {[%clk 0:00:06]} 25. Qxh8 {[%clk 0:00:21]}  Qe8 {[%clk 0:00:06]} 26. Qe5 {[%clk 0:00:17]}  Qd7 {[%clk 0:00:06]} 27. fxg6 {[%clk 0:00:16]}  hxg6 {[%clk 0:00:06]} 28. Rd3 {[%clk 0:00:15]}  Bg7 {[%clk 0:00:06]} 29. Qe3 {[%clk 0:00:15]}  Qd6 {[%clk 0:00:06]} 30. Rb3 {[%clk 0:00:14]}  b6 {[%clk 0:00:06]} 31. Ra3 {[%clk 0:00:13]}  Rc7 {[%clk 0:00:07]} 32. Bg1 {[%clk 0:00:11]}  Qd7 {[%clk 0:00:06]} 33. Rf1 {[%clk 0:00:11]}  Qc6 {[%clk 0:00:06]} 34. Rc3 {[%clk 0:00:11]}  Qd7 {[%clk 0:00:06]} 35. Rxc7 {[%clk 0:00:11]}  Qxc7 {[%clk 0:00:06]} 36. Rxf7 {[%clk 0:00:11]}  Qd6 {[%clk 0:00:06]} 37. Bf2 {[%clk 0:00:07]}  Qb4 {[%clk 0:00:02]} 38. c3 {[%clk 0:00:07]}  Qd6 {[%clk 0:00:02]} 39. Rf3 {[%clk 0:00:06]}  Kd7 {[%clk 0:00:01]} 40. Kc2 {[%clk 0:00:07]}  Kd8 {[%clk 0:00:02]} 41. Qe2 {[%clk 0:00:06]}  Kd7 {[%clk 0:00:03]} 42. Re3 {[%clk 0:00:07]}  Kd8 {[%clk 0:00:03]} 43. Re6 {[%clk 0:00:07]}  Qd7 {[%clk 0:00:03]} 44. Re3 {[%clk 0:00:06]}  Qf5+ {[%clk 0:00:03]} 45. Kc1 {[%clk 0:00:05]}  Bf8 {[%clk 0:00:04]} 46. Qf3 {[%clk 0:00:05]}  Ng7 {[%clk 0:00:02]} 47. Qxf5 {[%clk 0:00:05]}  Nxf5 {[%clk 0:00:03]} 48. Re5 {[%clk 0:00:05]}  Kd7 {[%clk 0:00:01]} 49. Rxd5+ {[%clk 0:00:05]}  Ke6 {[%clk 0:00:02]} 50. Re5+ {[%clk 0:00:06]}  Kd6 {[%clk 0:00:02]} 51. h4 {[%clk 0:00:05]}  Bg7 {[%clk 0:00:03]} 52. Re4 {[%clk 0:00:06]}  e6 {[%clk 0:00:03]} 53. c4 {[%clk 0:00:04]}  Bh8 {[%clk 0:00:02]} 54. Kc2 {[%clk 0:00:04]}  Bg7 {[%clk 0:00:02]} 55. Kd3 {[%clk 0:00:05]}  Bh8 {[%clk 0:00:03]} 56. b4 {[%clk 0:00:05]}  Bg7 {[%clk 0:00:03]} 57. Re1 {[%clk 0:00:05]}  Bh8 {[%clk 0:00:02]} 58. Ra1 {[%clk 0:00:05]}  a5 {[%clk 0:00:02]} 59. bxa5 {[%clk 0:00:05]}  bxa5 {[%clk 0:00:03]} 60. Rxa5 {[%clk 0:00:06]}  Bg7 {[%clk 0:00:03]} 61. Ra7 {[%clk 0:00:05]}  Kc6 {[%clk 0:00:02]} 62. Rf7 {[%clk 0:00:04]}  Kd6 {[%clk 0:00:02]} 63. c5+ {[%clk 0:00:04]}  Kc6 {[%clk 0:00:02]} 64. Kc4 {[%clk 0:00:05]} 1-0


[Site "https://www.chess.com"]

[Event "Titled Tuesday Blitz March 01 Early 2022"]
[White "Buscar, Michael"]
[Black "Viani Antonio Dcunha"]
[WhiteFideId "2603616"]
[BlackFideId "5027330"]
[WhiteElo "2010"]
[BlackElo "2366"]
[Result "0-1"]
[Round "04"]
[TimeControl "180+1"]
[Date "2022.03.01"]
[WhiteClock "0:01:45"]
[BlackClock "0:01:53"]

1. c4 {[%clk 0:02:54]}  Nf6 {[%clk 0:02:59]} 2. Nc3 {[%clk 0:02:50]}  e5 {[%clk 0:02:57]} 3. e3 {[%clk 0:02:48]}  d5 {[%clk 0:02:55]} 4. cxd5 {[%clk 0:02:49]}  Nxd5 {[%clk 0:02:56]} 5. Qc2 {[%clk 0:02:48]}  Nc6 {[%clk 0:02:48]} 6. a3 {[%clk 0:02:48]}  Be6 {[%clk 0:02:45]} 7. Nf3 {[%clk 0:02:24]}  Bd6 {[%clk 0:02:31]} 8. Ne4 {[%clk 0:02:16]}  h6 {[%clk 0:02:23]} 9. Nc5 {[%clk 0:02:15]}  Bc8 {[%clk 0:02:12]} 10. Bc4 {[%clk 0:02:12]}  Bxc5 {[%clk 0:02:09]} 11. O-O {[%clk 0:02:05]}  O-O {[%clk 0:02:07]} 12. d4 {[%clk 0:02:05]}  exd4 {[%clk 0:02:05]} 13. exd4 {[%clk 0:02:04]}  Nxd4 {[%clk 0:02:01]} 14. Nxd4 {[%clk 0:02:02]}  Bxd4 {[%clk 0:02:02]} 15. Rd1 {[%clk 0:02:03]}  c5 {[%clk 0:02:01]} 16. b4 {[%clk 0:02:03]}  Bxa1 {[%clk 0:01:58]} 17. Bxd5 {[%clk 0:01:59]}  Qf6 {[%clk 0:01:57]} 18. Be3 {[%clk 0:01:45]}  Bd4 {[%clk 0:01:53]} 0-1


[Site "https://www.chess.com"]

[Event "Titled Tuesday Blitz March 01 Early 2022"]
[White "Carre, Sylvain"]
[Black "Ferguson, Randal"]
[WhiteFideId "642118"]
[BlackFideId "30903106"]
[WhiteElo "2105"]
[BlackElo "2086"]
[Result "1-0"]
[Round "04"]
[TimeControl "180+1"]
[Date "2022.03.01"]
[WhiteClock "0:00:14"]
[BlackClock "0:00:01"]

1. d4 {[%clk 0:03:00]}  Nf6 {[%clk 0:02:59]} 2. Bf4 {[%clk 0:02:59]}  c5 {[%clk 0:02:58]} 3. d5 {[%clk 0:02:59]}  Qb6 {[%clk 0:02:56]} 4. Nc3 {[%clk 0:02:59]}  d6 {[%clk 0:02:51]} 5. Rb1 {[%clk 0:02:54]}  Bf5 {[%clk 0:02:31]} 6. f3 {[%clk 0:02:53]}  Nbd7 {[%clk 0:02:13]} 7. e4 {[%clk 0:02:51]}  Bg6 {[%clk 0:02:13]} 8. h4 {[%clk 0:02:32]}  h5 {[%clk 0:01:56]} 9. Nh3 {[%clk 0:02:22]}  O-O-O {[%clk 0:01:35]} 10. Ng5 {[%clk 0:02:21]}  Ne5 {[%clk 0:01:23]} 11. Qd2 {[%clk 0:01:57]}  Ne8 {[%clk 0:01:19]} 12. a4 {[%clk 0:01:45]}  a6 {[%clk 0:01:14]} 13. Be2 {[%clk 0:01:36]}  Nc7 {[%clk 0:01:11]} 14. Qe3 {[%clk 0:01:11]}  Qb4 {[%clk 0:01:03]} 15. O-O {[%clk 0:01:06]}  Nc4 {[%clk 0:00:42]} 16. Qc1 {[%clk 0:01:01]}  e5 {[%clk 0:00:34]} 17. dxe6 {[%clk 0:00:56]}  Nxe6 {[%clk 0:00:33]} 18. Nd5 {[%clk 0:00:41]}  Nxf4 {[%clk 0:00:26]} 19. Qxf4 {[%clk 0:00:36]}  Qd2 {[%clk 0:00:12]} 20. Bxc4 {[%clk 0:00:35]}  Qd4+ {[%clk 0:00:12]} 21. Ne3 {[%clk 0:00:31]}  d5 {[%clk 0:00:06]} 22. Rfd1 {[%clk 0:00:20]}  Qf6 {[%clk 0:00:06]} 23. Qxf6 {[%clk 0:00:20]}  gxf6 {[%clk 0:00:07]} 24. Nxd5 {[%clk 0:00:20]}  fxg5 {[%clk 0:00:07]} 25. hxg5 {[%clk 0:00:21]}  Bg7 {[%clk 0:00:04]} 26. Ne7+ {[%clk 0:00:19]}  Kc7 {[%clk 0:00:03]} 27. Nxg6 {[%clk 0:00:19]}  fxg6 {[%clk 0:00:04]} 28. c3 {[%clk 0:00:18]}  h4 {[%clk 0:00:01]} 29. Be6 {[%clk 0:00:17]}  h3 {[%clk 0:00:01]} 30. Bxh3 {[%clk 0:00:17]}  Be5 {[%clk 0:00:01]} 31. Kf2 {[%clk 0:00:15]}  Bf4 {[%clk 0:00:01]} 32. Rd5 {[%clk 0:00:14]} 1-0


[Site "https://www.chess.com"]

[Event "Titled Tuesday Blitz March 01 Early 2022"]
[White "Danielian, Vardan"]
[Black "Ovezdurdyyeva, Jemal"]
[WhiteFideId "13301594"]
[BlackFideId "14001888"]
[WhiteElo "2482"]
[BlackElo "1946"]
[Result "1-0"]
[Round "04"]
[TimeControl "180+1"]
[Date "2022.03.01"]
[WhiteClock "0:00:20"]
[BlackClock "0:00:07"]

1. Nf3 {[%clk 0:02:59]}  Nf6 {[%clk 0:02:57]} 2. g3 {[%clk 0:02:59]}  g6 {[%clk 0:02:56]} 3. Bg2 {[%clk 0:02:59]}  d5 {[%clk 0:02:56]} 4. O-O {[%clk 0:02:59]}  Bg7 {[%clk 0:02:56]} 5. d4 {[%clk 0:02:59]}  O-O {[%clk 0:02:54]} 6. c4 {[%clk 0:03:00]}  c6 {[%clk 0:02:52]} 7. cxd5 {[%clk 0:03:00]}  Nxd5 {[%clk 0:02:49]} 8. Nc3 {[%clk 0:03:01]}  Bg4 {[%clk 0:02:44]} 9. e4 {[%clk 0:02:59]}  Nxc3 {[%clk 0:02:35]} 10. bxc3 {[%clk 0:03:00]}  Qd7 {[%clk 0:02:31]} 11. Qe2 {[%clk 0:02:46]}  Bh3 {[%clk 0:02:24]} 12. Bf4 {[%clk 0:02:41]}  Bxg2 {[%clk 0:02:22]} 13. Kxg2 {[%clk 0:02:42]}  b6 {[%clk 0:02:19]} 14. Rad1 {[%clk 0:02:26]}  Qb7 {[%clk 0:02:17]} 15. c4 {[%clk 0:02:26]}  Nd7 {[%clk 0:02:16]} 16. Rfe1 {[%clk 0:02:24]}  Rfe8 {[%clk 0:02:09]} 17. d5 {[%clk 0:02:09]}  Nc5 {[%clk 0:02:03]} 18. Be5 {[%clk 0:01:53]}  f6 {[%clk 0:01:29]} 19. Ba1 {[%clk 0:01:39]}  e5 {[%clk 0:01:16]} 20. Bb2 {[%clk 0:01:26]}  Rad8 {[%clk 0:01:11]} 21. h4 {[%clk 0:01:26]}  b5 {[%clk 0:01:08]} 22. dxc6 {[%clk 0:01:20]}  Qxc6 {[%clk 0:01:00]} 23. cxb5 {[%clk 0:01:20]}  Qb7 {[%clk 0:00:59]} 24. Rxd8 {[%clk 0:01:10]}  Rxd8 {[%clk 0:01:00]} 25. Qc4+ {[%clk 0:01:10]}  Kh8 {[%clk 0:00:22]} 26. Qxc5 {[%clk 0:01:10]}  Rc8 {[%clk 0:00:22]} 27. Qd5 {[%clk 0:01:07]}  Qb6 {[%clk 0:00:20]} 28. Rd1 {[%clk 0:01:03]}  h5 {[%clk 0:00:17]} 29. Rd2 {[%clk 0:00:57]}  Kh7 {[%clk 0:00:16]} 30. Qf7 {[%clk 0:00:52]}  Rc7 {[%clk 0:00:15]} 31. Rd7 {[%clk 0:00:47]}  Rxd7 {[%clk 0:00:15]} 32. Qxd7 {[%clk 0:00:48]}  a6 {[%clk 0:00:15]} 33. bxa6 {[%clk 0:00:46]}  Qxa6 {[%clk 0:00:14]} 34. Qd5 {[%clk 0:00:29]}  Bf8 {[%clk 0:00:14]} 35. Bxe5 {[%clk 0:00:25]}  fxe5 {[%clk 0:00:13]} 36. Ng5+ {[%clk 0:00:25]}  Kh6 {[%clk 0:00:09]} 37. Qg8 {[%clk 0:00:20]}  Qf6 {[%clk 0:00:07]} 38. Qh7# {[%clk 0:00:20]} 1-0


[Site "https://www.chess.com"]

[Event "Titled Tuesday Blitz March 01 Early 2022"]
[White "Deac, Bogdan-Daniel"]
[Black "Mosadeghpour, Masoud"]
[WhiteFideId "1226380"]
[BlackFideId "12519278"]
[WhiteElo "3029"]
[BlackElo "2818"]
[Result "1-0"]
[Round "04"]
[TimeControl "180+1"]
[Date "2022.03.01"]
[WhiteClock "0:00:07"]
[BlackClock "0:00:02"]

1. e4 {[%clk 0:03:00]}  c5 {[%clk 0:02:55]} 2. Nf3 {[%clk 0:02:59]}  d6 {[%clk 0:02:55]} 3. d4 {[%clk 0:02:59]}  cxd4 {[%clk 0:02:56]} 4. Nxd4 {[%clk 0:02:59]}  Nf6 {[%clk 0:02:57]} 5. Nc3 {[%clk 0:03:00]}  Nc6 {[%clk 0:02:57]} 6. Bg5 {[%clk 0:02:59]}  e6 {[%clk 0:02:57]} 7. Bb5 {[%clk 0:03:00]}  Bd7 {[%clk 0:02:55]} 8. Qd3 {[%clk 0:03:00]}  h6 {[%clk 0:02:51]} 9. Bh4 {[%clk 0:03:00]}  g5 {[%clk 0:02:41]} 10. Bg3 {[%clk 0:02:59]}  Ne5 {[%clk 0:02:41]} 11. Qe2 {[%clk 0:02:58]}  a6 {[%clk 0:02:40]} 12. Bxd7+ {[%clk 0:02:58]}  Nfxd7 {[%clk 0:02:41]} 13. h4 {[%clk 0:02:57]}  Rg8 {[%clk 0:02:34]} 14. hxg5 {[%clk 0:02:57]}  hxg5 {[%clk 0:02:35]} 15. O-O-O {[%clk 0:02:31]}  Rc8 {[%clk 0:02:32]} 16. Nb3 {[%clk 0:00:44]}  Qb6 {[%clk 0:02:24]} 17. f3 {[%clk 0:00:40]}  Bg7 {[%clk 0:02:20]} 18. Bf2 {[%clk 0:00:34]}  Qc7 {[%clk 0:02:01]} 19. Bd4 {[%clk 0:00:31]}  b5 {[%clk 0:01:58]} 20. a3 {[%clk 0:00:26]}  Nc5 {[%clk 0:01:45]} 21. Kb1 {[%clk 0:00:23]}  Na4 {[%clk 0:01:20]} 22. Nc1 {[%clk 0:00:17]}  Nxb2 {[%clk 0:00:16]} 23. Kxb2 {[%clk 0:00:16]}  Qa5 {[%clk 0:00:16]} 24. Nb3 {[%clk 0:00:14]}  Qc7 {[%clk 0:00:10]} 25. Ka2 {[%clk 0:00:09]}  Ke7 {[%clk 0:00:10]} 26. Rh7 {[%clk 0:00:08]}  Bf6 {[%clk 0:00:08]} 27. g3 {[%clk 0:00:06]}  Nc4 {[%clk 0:00:05]} 28. Bxf6+ {[%clk 0:00:05]}  Kxf6 {[%clk 0:00:06]} 29. f4 {[%clk 0:00:06]}  gxf4 {[%clk 0:00:05]} 30. gxf4 {[%clk 0:00:07]}  Nxa3 {[%clk 0:00:04]} 31. e5+ {[%clk 0:00:07]}  dxe5 {[%clk 0:00:03]} 32. fxe5+ {[%clk 0:00:08]}  Ke7 {[%clk 0:00:04]} 33. Qf3 {[%clk 0:00:08]}  Rgf8 {[%clk 0:00:02]} 34. Kxa3 {[%clk 0:00:04]}  Qxc3 {[%clk 0:00:02]} 35. Qf6+ {[%clk 0:00:04]}  Ke8 {[%clk 0:00:03]} 36. Rd2 {[%clk 0:00:05]}  b4+ {[%clk 0:00:02]} 37. Ka2 {[%clk 0:00:05]}  Qc6 {[%clk 0:00:02]} 38. Rf2 {[%clk 0:00:05]}  Qa4+ {[%clk 0:00:03]} 39. Kb1 {[%clk 0:00:05]}  Qd7 {[%clk 0:00:04]} 40. Rh8 {[%clk 0:00:05]}  Rxh8 {[%clk 0:00:02]} 41. Qxh8+ {[%clk 0:00:05]}  Ke7 {[%clk 0:00:03]} 42. Qf6+ {[%clk 0:00:05]}  Ke8 {[%clk 0:00:04]} 43. Qh8+ {[%clk 0:00:06]}  Ke7 {[%clk 0:00:04]} 44. Qh4+ {[%clk 0:00:07]}  Ke8 {[%clk 0:00:04]} 45. Qg5 {[%clk 0:00:07]}  Qc6 {[%clk 0:00:01]} 46. Qg8+ {[%clk 0:00:07]}  Kd7 {[%clk 0:00:02]} 47. Rxf7# {[%clk 0:00:07]} 1-0


[Site "https://www.chess.com"]

[Event "Titled Tuesday Blitz March 01 Early 2022"]
[White "Di Nicolantonio, Lucas"]
[Black "Makarian, Rudik"]
[WhiteFideId "680460"]
[BlackFideId "44105681"]
[WhiteElo "2381"]
[BlackElo "2486"]
[Result "0-1"]
[Round "04"]
[TimeControl "180+1"]
[Date "2022.03.01"]
[WhiteClock "0:00:07"]
[BlackClock "0:00:48"]

1. d4 {[%clk 0:03:00]}  Nf6 {[%clk 0:02:16]} 2. Bg5 {[%clk 0:02:58]}  e6 {[%clk 0:02:17]} 3. e4 {[%clk 0:02:58]}  h6 {[%clk 0:02:16]} 4. Bxf6 {[%clk 0:02:58]}  Qxf6 {[%clk 0:02:16]} 5. c3 {[%clk 0:02:59]}  b6 {[%clk 0:02:16]} 6. g3 {[%clk 0:02:53]}  Bb7 {[%clk 0:02:15]} 7. Bg2 {[%clk 0:02:53]}  Qe7 {[%clk 0:02:15]} 8. Ne2 {[%clk 0:02:52]}  d6 {[%clk 0:02:13]} 9. O-O {[%clk 0:02:49]}  Nd7 {[%clk 0:02:12]} 10. a4 {[%clk 0:02:49]}  a6 {[%clk 0:02:08]} 11. Nd2 {[%clk 0:02:48]}  g6 {[%clk 0:02:09]} 12. f4 {[%clk 0:02:47]}  Bg7 {[%clk 0:02:09]} 13. e5 {[%clk 0:02:46]}  Bxg2 {[%clk 0:02:08]} 14. Kxg2 {[%clk 0:02:47]}  O-O {[%clk 0:02:08]} 15. Ne4 {[%clk 0:02:40]}  dxe5 {[%clk 0:02:03]} 16. dxe5 {[%clk 0:02:33]}  Rfd8 {[%clk 0:02:02]} 17. Qc2 {[%clk 0:02:32]}  Nc5 {[%clk 0:02:02]} 18. Rfd1 {[%clk 0:02:31]}  Rd5 {[%clk 0:01:58]} 19. Nd4 {[%clk 0:02:10]}  Qd7 {[%clk 0:01:53]} 20. b4 {[%clk 0:01:58]}  Nxe4 {[%clk 0:01:51]} 21. Qxe4 {[%clk 0:01:58]}  Rd8 {[%clk 0:01:51]} 22. b5 {[%clk 0:01:53]}  Bf8 {[%clk 0:01:50]} 23. Re1 {[%clk 0:01:43]}  axb5 {[%clk 0:01:47]} 24. axb5 {[%clk 0:01:43]}  Bc5 {[%clk 0:01:46]} 25. Nc6 {[%clk 0:01:39]}  Rd2+ {[%clk 0:01:47]} 26. Kh3 {[%clk 0:01:36]}  Re8 {[%clk 0:01:42]} 27. Re2 {[%clk 0:01:27]}  Rd3 {[%clk 0:01:36]} 28. c4 {[%clk 0:01:23]}  Kg7 {[%clk 0:01:32]} 29. Kg2 {[%clk 0:01:20]}  h5 {[%clk 0:01:31]} 30. Rf1 {[%clk 0:01:11]}  h4 {[%clk 0:01:30]} 31. Rf3 {[%clk 0:01:10]}  Rxf3 {[%clk 0:01:27]} 32. Qxf3 {[%clk 0:01:08]}  hxg3 {[%clk 0:01:27]} 33. hxg3 {[%clk 0:01:05]}  Qd1 {[%clk 0:01:23]} 34. Qf1 {[%clk 0:01:03]}  Qd3 {[%clk 0:01:22]} 35. Re1 {[%clk 0:00:54]}  Qf5 {[%clk 0:01:14]} 36. Qf3 {[%clk 0:00:18]}  Rh8 {[%clk 0:01:13]} 37. g4 {[%clk 0:00:19]}  Qc2+ {[%clk 0:01:13]} 38. Qe2 {[%clk 0:00:17]}  Qc3 {[%clk 0:01:12]} 39. Rh1 {[%clk 0:00:08]}  Rxh1 {[%clk 0:01:12]} 40. Kxh1 {[%clk 0:00:09]}  Qg3 {[%clk 0:01:12]} 41. Qg2 {[%clk 0:00:07]}  Qxf4 {[%clk 0:00:55]} 42. Qh3 {[%clk 0:00:06]}  Qc1+ {[%clk 0:00:49]} 43. Kg2 {[%clk 0:00:06]}  Qg1+ {[%clk 0:00:45]} 44. Kf3 {[%clk 0:00:06]}  Qe3+ {[%clk 0:00:46]} 45. Kg2 {[%clk 0:00:06]}  Qf2+ {[%clk 0:00:47]} 46. Kh1 {[%clk 0:00:07]}  Qg1# {[%clk 0:00:48]} 0-1


[Site "https://www.chess.com"]

[Event "Titled Tuesday Blitz March 01 Early 2022"]
[White "Domingo Nunez, Alejandro"]
[Black "Yanayt, Eugene"]
[WhiteFideId "22245561"]
[BlackFideId "2020165"]
[WhiteElo "2215"]
[BlackElo "2046"]
[Result "1-0"]
[Round "04"]
[TimeControl "180+1"]
[Date "2022.03.01"]
[WhiteClock "0:00:09"]
[BlackClock "0:00:13"]

1. Nf3 {[%clk 0:03:00]}  Nf6 {[%clk 0:02:59]} 2. g3 {[%clk 0:03:00]}  g6 {[%clk 0:02:58]} 3. b3 {[%clk 0:03:00]}  Bg7 {[%clk 0:02:57]} 4. Bb2 {[%clk 0:03:01]}  O-O {[%clk 0:02:57]} 5. Bg2 {[%clk 0:03:02]}  d6 {[%clk 0:02:56]} 6. d4 {[%clk 0:03:02]}  c5 {[%clk 0:02:52]} 7. c4 {[%clk 0:02:47]}  Nc6 {[%clk 0:02:47]} 8. O-O {[%clk 0:02:46]}  Bf5 {[%clk 0:02:43]} 9. d5 {[%clk 0:02:24]}  Nb4 {[%clk 0:02:33]} 10. a3 {[%clk 0:02:12]}  Na6 {[%clk 0:02:17]} 11. Nh4 {[%clk 0:02:08]}  Bd7 {[%clk 0:02:15]} 12. e4 {[%clk 0:02:07]}  b5 {[%clk 0:02:11]} 13. Nc3 {[%clk 0:01:49]}  bxc4 {[%clk 0:02:07]} 14. bxc4 {[%clk 0:01:50]}  Rb8 {[%clk 0:02:05]} 15. Rb1 {[%clk 0:01:46]}  Qa5 {[%clk 0:02:03]} 16. Qc2 {[%clk 0:01:43]}  Ng4 {[%clk 0:01:54]} 17. Nb5 {[%clk 0:01:29]}  Bxb2 {[%clk 0:01:30]} 18. Qxb2 {[%clk 0:01:29]}  Ne5 {[%clk 0:01:27]} 19. Qe2 {[%clk 0:01:23]}  Nxc4 {[%clk 0:01:21]} 20. Nxa7 {[%clk 0:01:21]}  Rxb1 {[%clk 0:01:12]} 21. Rxb1 {[%clk 0:01:19]}  Nxa3 {[%clk 0:01:12]} 22. Rb7 {[%clk 0:01:02]}  Nb8 {[%clk 0:01:01]} 23. e5 {[%clk 0:00:59]}  c4 {[%clk 0:00:45]} 24. e6 {[%clk 0:01:00]}  fxe6 {[%clk 0:00:45]} 25. dxe6 {[%clk 0:00:50]}  Ba4 {[%clk 0:00:38]} 26. Rxe7 {[%clk 0:00:42]}  c3 {[%clk 0:00:36]} 27. Qe3 {[%clk 0:00:13]}  c2 {[%clk 0:00:20]} 28. Be4 {[%clk 0:00:14]}  Qc5 {[%clk 0:00:14]} 29. Bxg6 {[%clk 0:00:10]}  Qxe3 {[%clk 0:00:13]} 30. Bxh7+ {[%clk 0:00:09]} 1-0


[Site "https://www.chess.com"]